[Event "32nd NATO Chess Championship"]
[Site "Tartu, Estonia"]
[Date "2022.06.28"]
[Round "3.6"]
[White "Sycz, Dariusz"]
[Black "Mouroutis, Konstantinos"]
[Result "1/2-1/2"]
[TimeControl "90 min + 30 sec increment from move one"]
[WhiteFideId "1138650"]
[BlackFideId "4204689"]
[WhiteElo "2189"]
[BlackElo "2133"]

1. d4 {[%emt 00:08:54]} Nf6 {[%emt 00:00:18]} 2. Nf3 {[%emt 00:00:56]} e6
{[%emt 00:00:14]} 3. b3 {[%emt 00:02:24]} Be7 {[%emt 00:00:21]} 4. Bb2 {[%emt
00:00:27]} b6 {[%emt 00:00:07]} 5. Nbd2 {[%emt 00:00:38]} Bb7 {[%emt 00:00:07]}
6. e3 {[%emt 00:00:20]} d5 {[%emt 00:00:41]} 7. Bd3 {[%emt 00:00:44]} Ne4
{[%emt 00:02:38]} 8. O-O {[%emt 00:00:55]} O-O {[%emt 00:00:11]} 9. c4 {[%emt
00:00:41]} Nd7 {[%emt 00:01:34]} 10. Qc2 {[%emt 00:01:27]} f5 {[%emt 00:00:28]}
11. Rad1 {[%emt 00:07:57]} Rc8 {[%emt 00:01:34]} 12. Ne5 {[%emt 00:03:42]} Nxe5
{[%emt 00:00:54]} 13. dxe5 {[%emt 00:01:18]} Nxd2 {[%emt 00:03:55]} 14. Rxd2
{[%emt 00:00:35]} Bb4 {[%emt 00:04:17]} 15. Rdd1 {[%emt 00:01:06]} Qe7 {[%emt
00:03:40]} 16. a3 {[%emt 00:08:50]} Bxa3 {[%emt 00:00:29]} 17. Bxa3 {[%emt
00:00:05]} Qxa3 {[%emt 00:00:08]} 18. Ra1 {[%emt 00:00:02]} Qc5 {[%emt
00:00:46]} 19. Rxa7 {[%emt 00:00:15]} dxc4 {[%emt 00:02:17]} 20. Qxc4 {[%emt
00:07:22]} Qxc4 {[%emt 00:03:43]} 21. Bxc4 {[%emt 00:00:24]} Bd5 {[%emt
00:00:07]} 22. Bxd5 {[%emt 00:01:12]} exd5 {[%emt 00:00:01]} 23. Rb7 {[%emt
00:00:41]} f4 {[%emt 00:10:11]} 24. Re1 {[%emt 00:03:23]} fxe3 {[%emt
00:00:33]} 25. Rxe3 {[%emt 00:00:07]} d4 {[%emt 00:02:38]} 26. Re4 {[%emt
00:01:48]} d3 {[%emt 00:00:48]} 27. Re1 {[%emt 00:01:36]} Rf5 {[%emt 00:00:45]}
28. g3 {[%emt 00:02:04]} d2 {[%emt 00:12:05]} 29. Rd1 {[%emt 00:00:14]} Rxe5
{[%emt 00:00:47]} 30. Rxd2 {[%emt 00:00:06]} Rc5 {[%emt 00:00:56]} 31. Kg2
{[%emt 00:15:36]} Rc3 {[%emt 00:01:14]} 32. Rd7 {[%emt 00:02:27]} Rxb3 {[%emt
00:00:13]} 33. Rdxc7 {[%emt 00:00:19]} Rxc7 {[%emt 00:00:12]} 34. Rxc7 {[%emt
00:00:07]} b5 {[%emt 00:01:47]} 35. g4 {[%emt 00:00:41]} h6 {[%emt 00:02:35]}
36. h4 {[%emt 00:01:22]} b4 {[%emt 00:02:03]} 37. Rb7 {[%emt 00:02:48]} Rb1
{[%emt 00:01:40]} 38. Kg3 {[%emt 00:03:56]} b3 {[%emt 00:04:13]} 39. h5 {[%emt
00:02:19]} Kh7 {[%emt 00:02:32]} 40. Kf4 {[%emt 00:01:16]} Rb2 {[%emt
00:09:44]} 41. Ke3 {[%emt 00:01:02]} Rb1 {[%emt 00:00:14]} 42. Rb8 {[%emt
00:02:15]} Rb2 {[%emt 00:04:06]} 43. Kf3 {[%emt 00:01:41]} Rb1 {[%emt
00:00:03]} 44. Kf4 {[%emt 00:02:10]} Rb2 {[%emt 00:00:19]} 45. f3 {[%emt
00:00:31]} Rb1 {[%emt 00:00:23]} 46. Kf5 {[%emt 00:00:25]} Rb2 {[%emt
00:01:38]} 47. Rb7 {[%emt 00:05:56]} Rb1 {[%emt 00:00:44]} 48. f4 {[%emt
00:00:39]} Rb2 {[%emt 00:02:55]} 49. g5 {[%emt 00:02:36]} hxg5 {[%emt
00:00:07]} 50. fxg5 {[%emt 00:00:14]} Rf2+ {[%emt 00:00:16]} 51. Kg4 {[%emt
00:00:31]} b2 {[%emt 00:03:33]} 52. Rb8 {[%emt 00:08:04]} Rg2+ {[%emt
00:01:00]} 53. Kf4 {[%emt 00:00:14]} Rf2+ {[%emt 00:01:40]} 54. Kg4 {[%emt
00:04:48]} Rg2+ {[%emt 00:00:02]} 55. Kf4 {[%emt 00:01:24]} Rf2+ {[%emt
00:00:04]} 56. Kg4 {[%emt 00:00:24]} 1/2-1/2

[Event "32nd NATO Chess Championship"]
[Site "Tartu, Estonia"]
[Date "2022.06.28"]
[Round "3.7"]
[White "Cheung, Jan"]
[Black "Cichy, Kamil"]
[Result "0-1"]
[TimeControl "90 min + 30 sec increment from move one"]
[WhiteFideId "1010735"]
[BlackFideId "1177257"]
[WhiteElo "1964"]
[BlackElo "2179"]

1. d4 {[%clk 01:30:57]} Nf6 {[%clk 01:30:35]} {[%emt 00:00:27]} 2. c4 {[%clk
01:31:21]} {[%emt 00:00:04]} e6 {[%clk 01:29:38]} {[%emt 00:01:28]} 3. Nf3
{[%clk 01:29:34]} {[%emt 00:02:16]} b6 {[%clk 01:29:27]} {[%emt 00:00:41]} 4.
a3 {[%clk 01:29:50]} {[%emt 00:00:15]} Bb7 {[%clk 01:29:11]} {[%emt 00:00:45]}
5. Nc3 {[%clk 01:30:14]} {[%emt 00:00:07]} d5 {[%clk 01:25:38]} {[%emt
00:04:03]} 6. cxd5 {[%clk 01:30:32]} {[%emt 00:00:11]} Nxd5 {[%clk 01:24:29]}
{[%emt 00:01:39]} 7. Qc2 {[%clk 01:30:05]} {[%emt 00:00:57]} Be7 {[%clk
01:11:23]} {[%emt 00:13:36]} 8. e4 {[%clk 01:30:18]} {[%emt 00:00:17]} Nxc3
{[%clk 01:09:25]} {[%emt 00:02:28]} 9. bxc3 {[%clk 01:30:41]} {[%emt 00:00:07]}
Nd7 {[%clk 00:56:41]} {[%emt 00:13:14]} 10. Bd3 {[%clk 01:30:55]} {[%emt
00:00:16]} a6 {[%clk 00:49:15]} {[%emt 00:07:57]} 11. O-O {[%clk 01:30:20]}
{[%emt 00:01:04]} c5 {[%clk 00:45:25]} {[%emt 00:04:20]} 12. Qe2 {[%clk
01:25:24]} {[%emt 00:05:26]} b5 {[%clk 00:27:51]} {[%emt 00:18:03]} 13. Rd1
{[%clk 01:22:43]} {[%emt 00:03:11]} c4 {[%clk 00:25:38]} {[%emt 00:02:44]} 14.
Bc2 {[%clk 01:21:08]} {[%emt 00:02:05]} Qc7 {[%clk 00:23:27]} {[%emt 00:02:41]}
15. h4 {[%clk 01:05:14]} {[%emt 00:16:24]} h6 {[%clk 00:22:18]} {[%emt
00:01:39]} 16. g3 {[%clk 00:54:13]} {[%emt 00:11:31]} Bd6 {[%clk 00:19:52]}
{[%emt 00:02:55]} 17. e5 {[%clk 00:46:09]} {[%emt 00:08:35]} Be7 {[%clk
00:19:22]} {[%emt 00:01:00]} 18. Be4 {[%clk 00:42:27]} {[%emt 00:04:12]} Nb6
{[%clk 00:18:28]} {[%emt 00:01:24]} 19. Bxb7 {[%clk 00:38:13]} {[%emt
00:04:45]} Qxb7 {[%clk 00:18:56]} {[%emt 00:00:02]} 20. Nd2 {[%clk 00:37:53]}
{[%emt 00:00:49]} Na4 {[%clk 00:14:41]} {[%emt 00:04:45]} 21. Ne4 {[%clk
00:35:32]} {[%emt 00:02:51]} Qd5 {[%clk 00:09:47]} {[%emt 00:05:23]} 22. f3
{[%clk 00:35:08]} {[%emt 00:00:55]} f5 {[%clk 00:04:32]} {[%emt 00:05:46]} 23.
exf6 {[%clk 00:33:54]} {[%emt 00:01:43]} gxf6 {[%clk 00:05:01]} {[%emt
00:00:02]} 24. Bd2 {[%clk 00:25:20]} {[%emt 00:09:04]} O-O-O {[%clk 00:04:26]}
{[%emt 00:01:04]} 25. Be1 {[%clk 00:21:14]} {[%emt 00:04:36]} Rdg8 {[%clk
00:03:36]} {[%emt 00:01:19]} 26. Kh2 {[%clk 00:20:51]} {[%emt 00:00:54]} f5
{[%clk 00:03:12]} {[%emt 00:00:54]} 27. Nc5 {[%clk 00:20:55]} {[%emt 00:00:25]}
Nxc5 {[%clk 00:01:52]} {[%emt 00:01:50]} 28. dxc5 {[%clk 00:21:20]} {[%emt
00:00:05]} Qc6 {[%clk 00:02:20]} {[%emt 00:00:02]} 29. a4 {[%clk 00:18:51]}
{[%emt 00:03:00]} Bxc5 {[%clk 00:02:08]} {[%emt 00:00:42]} 30. axb5 {[%clk
00:19:12]} {[%emt 00:00:09]} axb5 {[%clk 00:02:33]} {[%emt 00:00:04]} 31. Ra5
{[%clk 00:14:15]} {[%emt 00:05:27]} Bb6 {[%clk 00:02:01]} {[%emt 00:01:03]} 32.
Ra2 {[%clk 00:14:07]} {[%emt 00:00:37]} Kb7 {[%clk 00:01:40]} {[%emt 00:00:51]}
33. Bf2 {[%clk 00:13:11]} {[%emt 00:01:26]} Rd8 {[%clk 00:01:30]} {[%emt
00:00:40]} 34. Bxb6 {[%clk 00:09:50]} {[%emt 00:03:51]} Qxb6 {[%clk 00:01:44]}
{[%emt 00:00:16]} 35. Rb1 {[%clk 00:07:34]} {[%emt 00:02:46]} Rd5 {[%clk
00:00:45]} {[%emt 00:01:28]} 36. Rba1 {[%clk 00:05:56]} {[%emt 00:02:09]} Rhd8
{[%clk 00:00:53]} {[%emt 00:00:22]} 37. Kh3 {[%clk 00:05:30]} {[%emt 00:00:56]}
R8d6 {[%clk 00:00:39]} {[%emt 00:00:44]} 38. Ra7+ {[%clk 00:02:27]} {[%emt
00:03:33]} Qxa7 {[%clk 00:00:59]} {[%emt 00:00:10]} 39. Rxa7+ {[%clk 00:02:54]}
{[%emt 00:00:03]} Kxa7 {[%clk 00:01:27]} {[%emt 00:00:02]} 40. Qe3+ {[%clk
00:03:18]} {[%emt 00:00:06]} Ka6 {[%clk 00:01:22]} {[%emt 00:00:34]} 41. Qxh6
{[%clk 00:03:42]} {[%emt 00:00:07]} b4 {[%clk 00:00:59]} {[%emt 00:00:54]} 42.
cxb4 {[%clk 00:03:57]} {[%emt 00:00:14]} Kb5 {[%clk 00:00:55]} {[%emt
00:00:34]} 43. h5 {[%clk 00:04:01]} {[%emt 00:00:26]} c3 {[%clk 00:00:38]}
{[%emt 00:00:47]} 44. Qc1 {[%clk 00:02:53]} {[%emt 00:01:37]} Rc6 {[%clk
00:00:45]} {[%emt 00:00:24]} 45. h6 {[%clk 00:02:10]} {[%emt 00:01:13]} c2
{[%clk 00:01:03]} {[%emt 00:00:12]} 46. h7 {[%clk 00:00:47]} {[%emt 00:01:54]}
Rd8 {[%clk 00:00:59]} {[%emt 00:00:33]} 47. Kh4 {[%clk 00:00:37]} {[%emt
00:00:40]} Rh8 {[%clk 00:00:46]} {[%emt 00:00:43]} 48. Qf1+ {[%clk 00:00:50]}
{[%emt 00:00:17]} Rc4+ {[%clk 00:00:46]} {[%emt 00:00:31]} 0-1

[Event "32nd NATO Chess Championship"]
[Site "Tartu, Estonia"]
[Date "2022.06.28"]
[Round "3.8"]
[White "Valeinis, Janis"]
[Black "Onley, David E"]
[Result "1/2-1/2"]
[TimeControl "90 min + 30 sec increment from move one"]
[WhiteFideId "11601450"]
[BlackFideId "419311"]
[WhiteElo "2176"]
[BlackElo "2083"]

1. d4 {[%clk 01:30:56]} {[%emt 00:00:05]} Nf6 {[%clk 01:30:55]} {[%emt
00:00:04]} 2. Nc3 {[%clk 01:31:13]} {[%emt 00:00:14]} c5 {[%clk 01:30:37]}
{[%emt 00:00:48]} 3. d5 {[%clk 01:31:36]} {[%emt 00:00:06]} d6 {[%clk
01:30:51]} {[%emt 00:00:16]} 4. e4 {[%clk 01:32:01]} {[%emt 00:00:05]} g6
{[%clk 01:31:10]} {[%emt 00:00:11]} 5. f4 {[%clk 01:32:26]} {[%emt 00:00:05]}
Bg7 {[%clk 01:30:09]} {[%emt 00:01:31]} 6. Bb5+ {[%clk 01:32:50]} {[%emt
00:00:06]} Nfd7 {[%clk 01:29:49]} {[%emt 00:00:50]} 7. a4 {[%clk 01:32:30]}
{[%emt 00:00:50]} O-O {[%clk 01:29:08]} {[%emt 00:01:11]} 8. Nf3 {[%clk
01:32:55]} {[%emt 00:00:04]} Na6 {[%clk 01:28:09]} {[%emt 00:01:30]} 9. O-O
{[%clk 01:33:13]} {[%emt 00:00:12]} Nc7 {[%clk 01:28:19]} {[%emt 00:00:21]} 10.
Bc4 {[%clk 01:11:55]} {[%emt 00:21:48]} Rb8 {[%clk 01:21:08]} {[%emt 00:07:39]}
11. Qd3 {[%clk 01:11:58]} {[%emt 00:00:28]} a6 {[%clk 01:14:33]} {[%emt
00:07:06]} 12. h3 {[%clk 01:10:21]} {[%emt 00:02:06]} Nf6 {[%clk 01:06:59]}
{[%emt 00:08:04]} 13. e5 {[%clk 00:51:22]} {[%emt 00:19:30]} Bf5 {[%clk
01:02:14]} {[%emt 00:05:14]} 14. Qd1 {[%clk 00:39:17]} {[%emt 00:12:35]} Nfe8
{[%clk 00:51:28]} {[%emt 00:11:16]} 15. a5 {[%clk 00:37:52]} {[%emt 00:01:55]}
b5 {[%clk 00:48:04]} {[%emt 00:03:54]} 16. axb6 {[%clk 00:38:17]} {[%emt
00:00:05]} Rxb6 {[%clk 00:48:02]} {[%emt 00:00:32]} 17. Re1 {[%clk 00:34:19]}
{[%emt 00:04:27]} Nb5 {[%clk 00:41:24]} {[%emt 00:07:08]} 18. Na4 {[%clk
00:31:29]} {[%emt 00:03:21]} Rb8 {[%clk 00:36:47]} {[%emt 00:05:07]} 19. Ra2
{[%clk 00:25:41]} {[%emt 00:06:17]} Nec7 {[%clk 00:32:15]} {[%emt 00:05:03]} 20.
b3 {[%clk 00:23:00]} {[%emt 00:03:11]} Qc8 {[%clk 00:27:49]} {[%emt 00:04:56]}
21. Bb2 {[%clk 00:20:23]} {[%emt 00:03:07]} Re8 {[%clk 00:27:33]} {[%emt
00:00:46]} 22. Nc3 {[%clk 00:17:29]} {[%emt 00:03:23]} Qb7 {[%clk 00:24:32]}
{[%emt 00:03:31]} 23. g4 {[%clk 00:14:25]} {[%emt 00:03:34]} Nxc3 {[%clk
00:22:07]} {[%emt 00:02:55]} 24. Bxc3 {[%clk 00:14:50]} {[%emt 00:00:06]} Bd7
{[%clk 00:21:22]} {[%emt 00:01:15]} 25. Qd3 {[%clk 00:14:50]} {[%emt 00:00:30]}
Nb5 {[%clk 00:20:04]} {[%emt 00:01:48]} 26. Ba1 {[%clk 00:15:00]} {[%emt
00:00:19]} Rbd8 {[%clk 00:17:21]} {[%emt 00:03:12]} 27. Ng5 {[%clk 00:09:32]}
{[%emt 00:05:58]} dxe5 {[%clk 00:11:26]} {[%emt 00:06:27]} 28. fxe5 {[%clk
00:09:46]} {[%emt 00:00:15]} Rf8 {[%clk 00:07:05]} {[%emt 00:04:51]} 29. Qe3
{[%clk 00:09:16]} {[%emt 00:01:00]} Qc8 {[%clk 00:06:21]} {[%emt 00:01:15]} 30.
Nxf7 {[%clk 00:08:01]} {[%emt 00:01:45]} Rxf7 {[%clk 00:04:17]} {[%emt
00:02:33]} 31. e6 {[%clk 00:08:14]} {[%emt 00:00:17]} Bxe6 {[%clk 00:03:46]}
{[%emt 00:01:02]} 32. dxe6 {[%clk 00:01:40]} {[%emt 00:07:04]} Rff8 {[%clk
00:03:59]} {[%emt 00:00:17]} 33. Bxg7 {[%clk 00:02:00]} {[%emt 00:00:10]} Kxg7
{[%clk 00:04:21]} {[%emt 00:00:07]} 34. Bxb5 {[%clk 00:02:19]} {[%emt
00:00:12]} axb5 {[%clk 00:04:42]} {[%emt 00:00:09]} 35. Ra7 {[%clk 00:02:43]}
{[%emt 00:00:06]} Rde8 {[%clk 00:03:37]} {[%emt 00:01:35]} 36. Rd1 {[%clk
00:01:59]} {[%emt 00:01:13]} Rf6 {[%clk 00:03:20]} {[%emt 00:00:47]} 37. Rdd7
{[%clk 00:02:26]} {[%emt 00:00:04]} Kg8 {[%clk 00:01:56]} {[%emt 00:01:54]} 38.
Rxe7 {[%clk 00:01:17]} {[%emt 00:01:38]} Rxe7 {[%clk 00:02:18]} {[%emt
00:00:09]} 39. Rxe7 {[%clk 00:01:42]} {[%emt 00:00:04]} Qa8 {[%clk 00:02:33]}
{[%emt 00:00:16]} 40. Qe5 {[%clk 00:01:27]} {[%emt 00:00:45]} Qf3 {[%clk
00:01:52]} {[%emt 00:01:10]} 41. Re8+ {[%clk 00:01:50]} {[%emt 00:00:08]} Kg7
{[%clk 00:01:53]} {[%emt 00:00:29]} 42. Re7+ {[%clk 00:02:15]} {[%emt
00:00:04]} Kg8 {[%clk 00:01:55]} {[%emt 00:00:28]} 43. Re8+ {[%clk 00:02:03]}
{[%emt 00:00:42]} Kg7 {[%clk 00:02:16]} {[%emt 00:00:09]} 44. Re7+ {[%clk
00:01:36]} {[%emt 00:00:58]} Kg8 {[%clk 00:02:38]} {[%emt 00:00:07]} 45. Re8+
{[%emt 00:00:16]} 1/2-1/2

[Event "32nd NATO Chess Championship"]
[Site "Tartu, Estonia"]
[Date "2022.06.28"]
[Round "3.9"]
[White "Kedzierski, Slawomir"]
[Black "Tikerpuu, Mati"]
[Result "1-0"]
[TimeControl "90 min + 30 sec increment from move one"]
[WhiteFideId "1134949"]
[BlackFideId "4505905"]
[WhiteElo "2133"]
[BlackElo "1819"]

1. d4 {[%clk 01:30:57]} {[%emt 00:00:01]} e6 {[%clk 01:30:50]} {[%emt
00:00:11]} 2. Nf3 {[%clk 01:31:20]} {[%emt 00:00:07]} b6 {[%clk 01:31:08]}
{[%emt 00:00:13]} 3. e4 {[%clk 01:31:37]} {[%emt 00:00:11]} Bb7 {[%clk
01:30:27]} {[%emt 00:01:12]} 4. Bd3 {[%clk 01:31:59]} {[%emt 00:00:08]} c5
{[%clk 01:29:34]} {[%emt 00:01:24]} 5. c3 {[%clk 01:32:16]} {[%emt 00:00:12]}
cxd4 {[%clk 01:28:10]} {[%emt 00:01:54]} 6. cxd4 {[%clk 01:32:40]} {[%emt
00:00:06]} Bb4+ {[%clk 01:28:22]} {[%emt 00:00:18]} 7. Nbd2 {[%clk 01:32:54]}
{[%emt 00:00:15]} Nf6 {[%clk 01:26:58]} {[%emt 00:01:55]} 8. Qe2 {[%clk
01:33:05]} {[%emt 00:00:18]} O-O {[%clk 01:22:37]} {[%emt 00:04:52]} 9. O-O
{[%clk 01:33:17]} {[%emt 00:00:18]} Bxd2 {[%clk 01:15:26]} {[%emt 00:07:42]} 10.
Bxd2 {[%clk 01:33:18]} {[%emt 00:00:28]} h6 {[%clk 01:14:58]} {[%emt 00:00:58]}
11. Bb4 {[%clk 01:28:54]} {[%emt 00:04:54]} d6 {[%clk 01:10:27]} {[%emt
00:05:02]} 12. Rad1 {[%clk 01:24:11]} {[%emt 00:05:11]} Re8 {[%clk 01:01:53]}
{[%emt 00:09:05]} 13. Rfe1 {[%clk 01:21:49]} {[%emt 00:02:51]} a5 {[%clk
00:56:35]} {[%emt 00:05:49]} 14. Bd2 {[%clk 01:21:31]} {[%emt 00:00:47]} Ba6
{[%clk 00:56:08]} {[%emt 00:00:58]} 15. Rc1 {[%clk 01:13:00]} {[%emt 00:09:01]}
d5 {[%clk 00:53:19]} {[%emt 00:03:19]} 16. e5 {[%clk 01:10:59]} {[%emt
00:02:31]} Ne4 {[%clk 00:49:27]} {[%emt 00:04:22]} 17. Rc2 {[%clk 01:05:53]}
{[%emt 00:05:36]} Bxd3 {[%clk 00:44:48]} {[%emt 00:05:09]} 18. Qxd3 {[%clk
01:06:06]} {[%emt 00:00:16]} Na6 {[%clk 00:44:47]} {[%emt 00:00:32]} 19. a3
{[%clk 01:05:55]} {[%emt 00:00:40]} Rc8 {[%clk 00:41:57]} {[%emt 00:03:20]} 20.
Rec1 {[%clk 01:05:55]} {[%emt 00:00:29]} Rxc2 {[%clk 00:42:14]} {[%emt
00:00:15]} 21. Qxc2 {[%clk 01:03:55]} {[%emt 00:02:29]} Kf8 {[%clk 00:29:09]}
{[%emt 00:13:37]} 22. Be3 {[%clk 01:03:07]} {[%emt 00:01:17]} Re7 {[%clk
00:21:52]} {[%emt 00:07:46]} 23. Qd3 {[%clk 01:00:31]} {[%emt 00:03:05]} Nb8
{[%clk 00:18:12]} {[%emt 00:04:11]} 24. Ne1 {[%clk 00:59:37]} {[%emt 00:01:23]}
Kg8 {[%clk 00:11:31]} {[%emt 00:07:12]} 25. Qb5 {[%clk 00:53:44]} {[%emt
00:06:24]} Kf8 {[%clk 00:09:20]} {[%emt 00:02:41]} 26. h4 {[%clk 00:52:05]}
{[%emt 00:02:08]} Rb7 {[%clk 00:07:40]} {[%emt 00:02:11]} 27. g3 {[%clk
00:51:57]} {[%emt 00:00:37]} g5 {[%clk 00:05:43]} {[%emt 00:02:28]} 28. hxg5
{[%clk 00:49:07]} {[%emt 00:03:20]} hxg5 {[%clk 00:05:32]} {[%emt 00:00:41]} 29.
Kg2 {[%clk 00:46:31]} {[%emt 00:03:04]} g4 {[%clk 00:02:03]} {[%emt 00:04:01]}
30. Qe2 {[%clk 00:46:31]} {[%emt 00:00:29]} f5 {[%clk 00:01:56]} {[%emt
00:00:38]} 31. exf6 {[%clk 00:46:29]} {[%emt 00:00:32]} Nxf6 {[%clk 00:02:00]}
{[%emt 00:00:26]} 32. Bg5 {[%clk 00:46:20]} {[%emt 00:00:37]} Kf7 {[%clk
00:01:58]} {[%emt 00:00:33]} 33. Bxf6 {[%clk 00:44:00]} {[%emt 00:02:50]} Qxf6
{[%clk 00:02:09]} {[%emt 00:00:20]} 34. Qxg4 {[%clk 00:44:09]} {[%emt
00:00:20]} Nd7 {[%clk 00:01:48]} {[%emt 00:00:51]} 35. Nf3 {[%clk 00:43:28]}
{[%emt 00:01:10]} Ke7 {[%clk 00:01:33]} {[%emt 00:00:48]} 36. Rc6 {[%clk
00:38:40]} {[%emt 00:05:16]} Nb8 {[%clk 00:01:22]} {[%emt 00:00:41]} 37. Rc3
{[%clk 00:38:32]} {[%emt 00:00:38]} Kd6 {[%clk 00:01:34]} {[%emt 00:00:19]} 38.
Ne5 {[%clk 00:38:17]} {[%emt 00:00:44]} Rg7 {[%clk 00:01:43]} {[%emt 00:00:22]}
39. Qe2 {[%clk 00:36:03]} {[%emt 00:02:43]} Qh4 {[%clk 00:01:08]} {[%emt
00:01:06]} 40. Nf3 {[%clk 00:34:15]} {[%emt 00:02:18]} Qe4 {[%clk 00:01:09]}
{[%emt 00:00:29]} 41. Re3 {[%clk 00:34:24]} {[%emt 00:00:20]} Qf5 {[%clk
00:01:23]} {[%emt 00:00:17]} 42. Nh4 {[%clk 00:28:28]} {[%emt 00:06:23]} Qf6
{[%clk 00:01:31]} {[%emt 00:00:25]} 43. Nf3 {[%clk 00:26:19]} {[%emt 00:02:37]}
Nc6 {[%clk 00:01:54]} {[%emt 00:00:09]} 44. Qb5 {[%clk 00:23:52]} {[%emt
00:02:54]} Nxd4 {[%clk 00:01:48]} {[%emt 00:00:40]} 45. Qxb6+ {[%clk 00:23:41]}
{[%emt 00:00:40]} Nc6 {[%clk 00:02:03]} {[%emt 00:00:15]} 46. Ne5 {[%clk
00:23:20]} {[%emt 00:00:49]} Rc7 {[%clk 00:02:02]} {[%emt 00:00:33]} 47. b4
{[%clk 00:18:56]} {[%emt 00:04:54]} axb4 {[%clk 00:02:22]} {[%emt 00:00:10]} 48.
axb4 {[%clk 00:19:02]} {[%emt 00:00:23]} Qd8 {[%clk 00:00:39]} {[%emt
00:02:13]} 49. Qc5# {[%clk 00:17:18]} {[%emt 00:02:12]} 1-0